bitfinex-derivatives/quotes_ETHF0:USTF0_20250123
["timestamp","ask_amount","ask_price","bid_price","bid_amount"]
[1737652587887,0.00462942,3243.8,3243.4,6.12984408]
[1737652588184,0.61646,3243.6,3243.4,6.12984408]
[1737652588382,0.61644,3243.7,3243.4,6.74632408]
[1737652588590,0.00462942,3243.8,3243.5,0.61645]
[1737652588785,0.61643,3243.7,3243.5,0.61645]
[1737652589290,0.61643,3243.7,3243.4,6.74631408]
[1737652589691,0.61646,3243.5,3243.4,6.12984408]
[1737652589990,0.61646,3243.5,3243.4,3.2078]
[1737652590193,0.61644,3243.7,3243.4,6.12984408]
[1737652590393,0.61646,3243.6,3243.4,6.12984408]
[1737652590895,0.00462942,3243.8,3243.4,6.12984408]
[1737652591093,0.61646,3243.5,3243.4,6.12984408]
[1737652591295,0.61646,3243.5,3243.4,3.2078]
[1737652591790,0.6165,3243.3,3243.2,0.00462942]
[1737652593089,0.6165,3243.3,3242.3,0.61668]
[1737652593090,12.29292762,3243.3,3242.3,3.2078]
[1737652593293,0.61667,3242.4,3242.3,3.2078]
[1737652593598,0.61666,3242.5,3242.3,3.2078]
[1737652594293,1.54141,3243.0,3242.3,3.2078]
[1737652594600,0.61667,3242.4,3242.3,3.2078]
[1737652594788,1.54141,3243.0,3242.3,3.2078]
[1737652595000,4.74909,3243.3,3242.5,0.61664]
[1737652595001,0.6166,3242.8,3242.5,0.61664]
[1737652595494,0.61662,3242.7,3242.4,0.61666]
[1737652595701,0.61661,3242.8,3242.3,3.2078]
[1737652595998,0.61662,3242.7,3242.4,0.61667]
[1737652596196,6.4552,3243.7,3242.6,2.92204408]
[1737652596399,0.61644,3243.7,3243.3,0.61649]
[1737652596693,0.61644,3243.7,3242.7,3.06454]
[1737652596694,1.6178,3244.0,3243.6,3.2078]
[1737652596899,0.61638,3244.0,3243.7,0.61643]
[1737652597194,1.54087,3244.2,3243.6,3.2078]
[1737652597386,0.61643,3243.7,3243.6,3.2078]
[1737652598098,2.23423,3243.7,3243.6,3.2078]
[1737652599292,0.61643,3243.7,3243.6,3.2078]
[1737652600403,2.25567,3244.1,3243.6,3.2078]
[1737652600898,1.6393,3244.1,3243.6,3.2078]
[1737652601296,2.25566,3244.1,3243.6,3.2078]
[1737652601496,1.5148,3244.3,3243.7,0.61643]
[1737652601705,0.61631,3244.4,3243.7,0.61643]
[1737652602092,0.61631,3244.4,3243.7,2.27763]
[1737652602502,2.50419936,3244.6,3243.7,2.27763]
[1737652602806,0.6163,3244.4,3243.7,2.27763]
[1737652603103,0.61628,3244.5,3243.7,2.27763]
[1737652603494,2.21517,3244.6,3243.7,1.6612]
[1737652603803,1.88790951,3244.6,3244.2,6.12984408]
[1737652604002,2.50416951,3244.6,3244.2,6.12984408]
[1737652604198,1.5989,3244.6,3244.2,6.74616408]
[1737652604405,3.80552,3244.8,3244.2,6.74616408]
[1737652604597,1.5248,3244.8,3244.2,6.12984408]
[1737652604796,0.00462942,3244.8,3244.7,3.2078]
[1737652605102,0.00462942,3244.8,3244.7,3.82404]
[1737652605298,0.00462942,3244.8,3244.7,4.7456]
[1737652605499,0.00462942,3244.8,3244.7,3.2078]
[1737652606300,0.00462942,3244.8,3244.7,3.82404]
[1737652607009,0.00462942,3244.8,3244.7,3.2078]
[1737652608301,0.00462942,3244.8,3244.7,3.82404]
[1737652614204,0.61613,3245.5,3245.1,0.61619]
[1737652614515,0.61613,3245.5,3245.2,0.61618]
[1737652614703,0.61612,3245.6,3245.2,0.61617]
[1737652615009,0.61615,3245.4,3245.0,0.61621]
[1737652615205,0.61619,3245.2,3244.9,0.61624]
[1737652615510,0.61617,3245.3,3244.9,0.61624]
[1737652615805,0.61615,3245.4,3244.8,3.1049]
[1737652616006,0.61614,3245.5,3245.1,0.61619]
[1737652616307,0.61617,3245.3,3245.0,3.53826408]
[1737652617205,3.2078,3245.6,3245.0,2.92204408]
[1737652617411,0.61624,3244.9,3244.8,3.1049]
[1737652617605,3.06212,3245.5,3244.8,3.1049]
[1737652617813,0.61623,3245.0,3244.8,3.1049]
[1737652618402,1.54037,3245.4,3244.7,3.2078]
[1737652618601,3.2078,3245.0,3244.4,0.24466169]
[1737652618908,3.2078,3245.0,3244.3,3.82415]
[1737652619111,4.7484,3245.0,3244.3,3.2078]
[1737652619506,0.61634,3244.4,3244.3,3.2078]
[1737652619804,0.61635,3244.3,3244.2,0.00462942]
[1737652620002,3.84735,3244.3,3244.2,0.00462942]
[1737652620207,0.61633,3244.5,3244.2,0.62099942]
[1737652620513,3.231,3244.8,3244.2,2.9266735]
[1737652620905,0.61635,3244.3,3244.2,0.00462942]
[1737652621502,1.5982,3244.5,3243.7,3.2078]
[1737652621808,0.61642,3244.0,3243.4,2.92204408]
[1737652622016,0.61641,3244.0,3243.7,0.61645]
[1737652622202,0.61641,3244.0,3243.5,3.2763]
[1737652622203,3.8242,3244.1,3243.8,3.53848408]
[1737652622511,0.61642,3244.0,3243.8,2.92204408]
[1737652622707,0.61639,3244.2,3243.9,0.61642]
[1737652622916,0.00460494,3244.3,3243.8,2.92204408]
[1737652623109,0.00460494,3244.3,3244.2,2.92204408]
[1737652623414,0.00460494,3244.3,3244.2,3.53841408]
[1737652623610,1.6839,3245.4,3244.2,7.92204408]
[1737652623804,1.6035,3245.6,3245.3,2.92204408]
[1737652624010,4.8917,3246.0,3245.3,2.92204408]
[1737652624210,0.61618,3245.2,3245.1,3.2515]
[1737652624406,1.54013,3245.9,3245.1,3.2515]
[1737652624715,0.61615,3245.4,3245.2,0.00462207]
[1737652624901,1.5511,3245.8,3245.2,0.00462207]
[1737652625105,2.16718,3245.8,3245.4,0.61614]
[1737652625307,4.8917,3246.0,3245.3,2.92204408]
[1737652625709,1.6395,3246.2,3245.7,2.92204408]
[1737652626012,0.61605,3246.0,3245.8,3.2078]
[1737652626205,1.6283,3246.4,3245.8,3.2078]
[1737652626402,0.616,3246.2,3245.8,3.2078]
[1737652626606,1.6283,3246.4,3245.7,2.92204408]
[1737652626810,0.61594,3246.5,3246.0,2.92204408]
[1737652627013,1.5477,3246.7,3246.1,0.61601]
[1737652627218,1.5477,3246.7,3246.4,2.92204408]
[1737652627410,3.2078,3246.8,3246.5,0.61593]
[1737652627715,3.82369,3246.8,3246.4,3.53798408]
[1737652627915,3.2078,3246.8,3246.4,2.92204408]
[1737652628415,0.61589,3246.8,3246.4,3.53799408]
[1737652628609,0.61587,3246.9,3246.5,0.61593]
[1737652628809,4.7555,3247.2,3246.4,2.92204408]
[1737652629118,5.37132,3247.2,3246.8,2.92204408]
[1737652629304,5.37131,3247.2,3246.8,2.92204408]
[1737652629522,1.5477,3247.2,3246.6,3.2078]
[1737652630110,0.61585,3247.0,3246.6,3.82371]
[1737652630307,1.5477,3247.2,3246.7,3.53794408]
[1737652630517,0.61571,3247.7,3247.1,6.12984408]
[1737652630814,1.5883,3247.8,3247.1,6.12984408]
[1737652631117,1.5883,3247.8,3247.1,6.13446615]
[1737652631511,0.61573,3247.5,3247.1,6.13446615]
[1737652631703,0.6157,3247.6,3247.1,6.75025615]
[1737652632104,0.61577,3247.2,3247.1,0.00462207]
[1737652632414,0.61577,3247.3,3247.1,0.00462207]
[1737652632609,3.2078,3247.7,3247.1,0.00462207]
[1737652632813,0.61573,3247.5,3247.1,0.00462207]
[1737652633118,1.5883,3247.8,3247.1,3.54245615]
[1737652633312,1.5883,3247.8,3247.1,2.92666615]
[1737652633912,0.61574,3247.6,3247.1,2.92666615]
[1737652634113,0.61578,3247.4,3247.1,0.00462207]
[1737652634313,1.5883,3247.8,3247.1,0.00462207]
[1737652634517,0.61574,3247.5,3247.1,0.00462207]
[1737652634713,1.5883,3247.8,3247.1,0.00462207]
[1737652634910,0.6158,3247.2,3247.1,0.00462207]
[1737652637010,0.61601,3246.1,3245.9,2.92204408]
[1737652637312,0.61603,3246.1,3245.5,5.08585408]
[1737652637517,0.61595,3246.4,3245.7,0.61607]
[1737652637820,3.2078,3246.5,3245.9,2.92204408]
[1737652638014,0.61595,3246.4,3245.9,3.53809408]
[1737652638215,0.61595,3246.4,3245.9,3.54271615]
[1737652638411,3.21242207,3246.5,3245.9,2.92666615]
[1737652638916,0.616,3246.2,3245.9,2.92666615]
[1737652639114,0.61595,3246.4,3245.9,3.54269615]
[1737652639323,0.61597,3246.3,3245.9,2.92666615]
[1737652639509,3.21242207,3246.5,3245.9,2.92666615]
[1737652639817,0.616,3246.2,3245.9,0.00462207]
[1737652640124,3.0618,3246.8,3246.1,3.2078]
[1737652640418,1.5366,3246.8,3246.1,3.2078]
[1737652640618,0.61597,3246.4,3246.1,3.2078]
[1737652641320,0.61598,3246.3,3246.1,3.2078]
[1737652641616,1.5366,3246.8,3246.1,3.2078]
[1737652642019,0.61596,3246.4,3246.1,3.2078]
[1737652642419,0.61598,3246.3,3246.1,3.2078]
[1737652642721,1.5366,3246.8,3245.9,0.00462207]
[1737652642722,3.2078,3246.6,3245.9,0.00462207]
[1737652643713,0.616,3246.2,3245.9,0.00462207]
[1737652644115,3.2078,3246.6,3246.0,3.2078]
[1737652644320,3.2078,3246.6,3246.3,2.92204408]
[1737652644524,0.61594,3246.5,3246.3,2.92204408]
[1737652645515,0.61594,3246.5,3246.4,1.6384]
[1737652645813,3.2078,3246.6,3246.4,1.6384]
[1737652646014,3.82372,3246.6,3246.4,2.25435]
[1737652646319,3.2078,3246.6,3246.4,2.25435]
[1737652646521,0.61594,3246.5,3246.4,1.6384]
[1737652647218,0.61598,3246.3,3246.1,2.28611]
[1737652647626,4.74742,3247.0,3246.1,1.6701]
[1737652647816,0.61595,3246.5,3246.2,0.61598]
[1737652648021,0.61595,3246.5,3246.3,0.61597]
[1737652648221,0.61588,3246.8,3246.6,0.61592]
[1737652648417,0.61587,3246.9,3246.3,2.92204408]
[1737652648726,0.61586,3246.9,3246.6,0.61591]
[1737652648919,0.61586,3246.9,3246.7,0.6159]
[1737652649320,3.82365,3247.0,3246.8,0.61588]
[1737652649520,0.61586,3246.9,3246.8,0.61588]
[1737652650023,3.2078,3247.0,3246.7,2.92204408]
[1737652650223,0.61582,3247.2,3247.0,0.61583]
[1737652650418,0.00238134,3247.4,3246.8,4.8446]
[1737652650622,0.61584,3247.1,3246.9,0.61585]
[1737652650822,0.61584,3247.0,3246.9,0.61585]
[1737652651229,0.61581,3247.2,3247.1,0.61582]
[1737652651423,0.00238134,3247.4,3246.8,4.8446]
[1737652651632,0.61586,3246.9,3246.8,1.6368]
[1737652651831,3.2078,3247.1,3246.6,0.61591]
[1737652652034,0.61594,3246.5,3246.4,3.82376]
[1737652652233,0.61593,3246.6,3246.4,3.82376]
[1737652652527,0.00238134,3247.4,3247.1,0.61582]
[1737652652718,0.00238134,3247.4,3246.9,2.92204408]
[1737652652719,0.61579,3247.3,3246.9,2.92204408]
[1737652652926,0.61582,3247.2,3247.0,0.61584]
[1737652653232,0.61583,3247.1,3246.9,3.53789408]
[1737652653530,0.61582,3247.2,3247.0,0.61584]
[1737652653729,0.61579,3247.3,3247.0,0.61584]
[1737652653932,0.00238134,3247.4,3247.0,0.61584]
[1737652654123,0.61578,3247.1,3246.9,2.92204408]
[1737652654427,0.61577,3247.2,3247.0,0.6158]
[1737652654622,0.61575,3247.3,3247.1,0.61576]
[1737652655320,0.61575,3247.3,3247.0,1.6084]
[1737652655321,0.61578,3247.1,3247.0,2.22419]
[1737652655525,0.61578,3247.1,3247.0,1.6084]
[1737652655824,0.61577,3247.2,3247.0,2.22419]
[1737652656026,0.00238134,3247.4,3247.0,1.6084]
[1737652656326,0.61578,3247.1,3247.0,1.6084]
[1737652656531,0.61576,3247.2,3247.0,2.22418]
[1737652657127,0.61583,3247.1,3247.0,1.6084]
[1737652657724,0.00238134,3247.4,3247.0,4.01282237]
[1737652657927,0.61582,3247.2,3247.0,4.01282237]
[1737652658126,0.00238134,3247.4,3247.0,4.01282237]
[1737652658332,0.61583,3247.1,3247.0,4.01282237]
[1737652658732,0.61583,3247.1,3247.0,4.62867237]
[1737652659237,0.61583,3247.1,3247.0,4.01282237]
[1737652659934,0.61589,3246.8,3246.7,2.40442237]
[1737652660134,0.61595,3246.5,3246.4,1.6207]
[1737652660330,0.61602,3246.2,3245.9,0.00462207]
[1737652660526,0.61604,3246.0,3245.9,0.00462207]
[1737652660935,0.61604,3246.1,3245.9,2.40904444]
[1737652661430,0.61604,3246.0,3245.9,2.40904444]
[1737652661835,0.61604,3246.0,3245.9,0.00462207]
[1737652666036,1.88370811,3246.2,3245.9,0.00462207]
[1737652666229,0.61604,3246.1,3246.0,2.9158989]
[1737652666726,0.61604,3246.0,3245.9,0.00462207]
[1737652666923,0.61604,3246.1,3245.9,0.00462207]
[1737652667127,1.5948,3246.2,3245.9,0.00462207]
[1737652667329,0.61601,3246.2,3245.9,0.00462207]
[1737652667536,0.28890811,3246.5,3245.9,40.80462207]
[1737652667735,0.61602,3246.2,3245.9,41.42068207]
[1737652668135,0.61604,3246.0,3245.9,40.80462207]
[1737652668336,6.26347,3246.6,3245.9,40.80462207]
[1737652668632,4.7236,3246.6,3245.9,40.80462207]
[1737652668835,0.61603,3246.1,3245.9,41.42068207]
[1737652669039,0.61602,3246.2,3246.0,0.61604]
[1737652669235,0.28886534,3246.5,3245.9,40.80462207]
[1737652669435,0.616,3246.3,3246.1,0.61602]
[1737652669630,4.7236,3246.6,3246.0,7.7145989]
[1737652669831,2.14024,3246.6,3246.4,0.61596]
[1737652670033,0.61595,3246.5,3246.3,0.61597]
[1737652670336,0.61598,3246.4,3246.2,0.616]
[1737652670534,0.61598,3246.4,3246.1,0.61603]
[1737652670729,3.2078,3246.7,3246.0,4.7987]
[1737652670928,0.61594,3246.6,3246.0,7.7145989]
[1737652671138,0.6159,3246.8,3246.5,0.61594]
[1737652671538,0.61589,3246.9,3246.6,0.61592]
[1737652671838,0.6159,3246.8,3246.6,0.61592]
[1737652672042,0.6159,3246.8,3246.7,1.66]
[1737652672738,0.61593,3246.6,3246.5,1.525]
[1737652673143,0.2888077,3247.0,3246.5,1.525]
[1737652673934,0.61582,3247.2,3246.7,0.61591]
[1737652674147,3.2078,3247.3,3246.6,0.61592]
[1737652674330,3.2078,3247.3,3246.6,0.61593]
[1737652674534,0.61583,3247.2,3246.9,0.61586]
[1737652674738,0.00238134,3247.4,3246.9,1.5789]
[1737652675243,0.61585,3247.1,3246.9,1.5789]
[1737652675644,0.61584,3247.1,3246.9,1.5789]
[1737652675837,0.00238134,3247.4,3246.9,1.81889518]
[1737652676040,0.61587,3246.9,3246.8,3.2078]
[1737652677044,0.00238134,3247.4,3246.8,3.2078]
[1737652677443,0.61587,3246.9,3246.8,3.2078]
[1737652678541,0.00238134,3247.4,3246.8,3.2078]
[1737652678945,0.61587,3247.0,3246.8,3.2078]
[1737652679247,0.61586,3247.0,3246.8,3.2078]
[1737652679647,0.61585,3247.1,3246.8,3.2078]
[1737652679945,0.61586,3247.0,3246.8,3.2078]
[1737652680540,0.00238134,3247.4,3246.8,3.2078]
[1737652680743,0.6158,3247.3,3246.8,6.1236989]
[1737652680950,0.61586,3247.0,3246.8,6.1236989]
[1737652681144,0.00238134,3247.4,3246.8,6.1236989]
[1737652681651,0.61583,3247.2,3246.9,0.61586]
[1737652682146,0.00238134,3247.4,3246.8,5.61251711]
[1737652682748,0.00238134,3247.4,3246.8,3.2078]
[1737652683046,0.00238134,3247.4,3247.1,2.40471711]
[1737652683352,0.00238134,3247.4,3246.8,6.22840711]
[1737652683647,0.61587,3246.9,3246.8,5.61251711]
[1737652683848,0.00238134,3247.4,3246.8,5.61251711]
[1737652684048,0.61582,3247.2,3246.9,0.61587]
[1737652684250,0.00238134,3247.4,3246.8,5.61251711]
[1737652684445,0.61586,3247.0,3246.8,6.22840711]
[1737652684638,0.61585,3247.1,3246.8,6.22840711]
[1737652685148,0.61586,3247.0,3246.8,5.61251711]
[1737652686054,0.61587,3246.9,3246.8,5.61251711]
[1737652686355,0.61587,3246.9,3246.8,3.2078]
[1737652686549,0.61592,3246.7,3246.5,3.92971711]
[1737652686942,4.7473,3247.3,3246.4,3.2078]
[1737652686943,6.28683,3247.3,3246.4,3.2078]
[1737652687148,1.53966,3247.0,3246.5,2.40471711]
[1737652687346,1.5396,3247.1,3246.5,2.40471711]
[1737652687547,0.61593,3246.6,3246.5,2.40471711]
[1737652689450,0.61592,3246.7,3246.5,2.40471711]
[1737652689950,1.5396,3247.1,3246.5,2.40471711]
[1737652690151,0.61593,3246.6,3246.5,2.40471711]
[1737652690344,0.61593,3246.7,3246.5,2.40471711]
[1737652690752,0.61593,3246.6,3246.5,2.40471711]
[1737652691050,0.28881689,3247.2,3246.5,2.40471711]
[1737652691252,0.6159,3246.8,3246.6,0.61593]
[1737652691452,0.28881689,3247.2,3246.5,2.40471711]
[1737652691647,0.90464689,3247.2,3247.0,0.61585]
[1737652691947,0.90464689,3247.2,3246.9,2.40471711]
[1737652691948,0.28881689,3247.2,3246.9,2.40471711]
[1737652692155,0.61584,3247.1,3247.0,3.0883]
[1737652693354,0.61584,3247.1,3247.0,1.5516]
[1737652693553,0.61587,3246.9,3246.8,3.2078]
[1737652694749,3.49660221,3247.2,3246.6,2.40471711]
[1737652695057,0.61591,3246.7,3246.6,2.40471711]
[1737652695255,0.61597,3246.4,3246.3,2.40471711]
[1737652695757,3.2078,3246.8,3246.3,3.02069711]
[1737652696057,0.61597,3246.4,3246.3,2.40471711]
[1737652699656,3.2078,3246.8,3246.0,5.61251711]
[1737652699961,0.61603,3246.1,3246.0,5.61251711]
[1737652700962,0.61605,3246.0,3245.9,0.00462207]
[1737652702055,1.5761,3246.3,3245.9,0.62067207]
[1737652702254,0.61601,3246.2,3246.1,2.40471711]
[1737652702861,0.61603,3246.1,3246.0,3.2078]
[1737652703360,0.61605,3246.0,3245.9,0.00462207]
[1737652703961,0.61604,3246.1,3245.9,0.00462207]
[1737652704162,0.61604,3246.1,3246.0,2.40471711]
[1737652704359,1.53981,3246.7,3246.0,2.40471711]
[1737652704360,5.48355711,3247.5,3246.0,5.61251711]
[1737652704663,0.61599,3246.3,3246.2,2.40471711]
[1737652705157,0.61599,3246.3,3246.2,3.02072711]
[1737652705349,0.61599,3246.3,3246.2,2.40471711]
[1737652705757,0.61601,3246.2,3246.1,3.0779]
[1737652707862,3.2078,3246.6,3245.9,0.00462207]
[1737652708159,0.61605,3246.0,3245.9,0.00462207]
[1737652708861,0.61605,3246.0,3245.9,2.40933918]
[1737652709957,0.61605,3246.0,3245.9,0.00462207]
[1737652711064,0.90496875,3246.0,3245.9,0.00462207]
[1737652711461,0.61605,3246.0,3245.9,0.00462207]
[1737652712555,0.90496693,3246.0,3245.9,0.00462207]
[1737652713161,0.61605,3246.0,3245.9,0.00462207]
[1737652713964,4.57097999,3246.0,3245.9,0.00462207]
[1737652714174,4.85989315,3246.0,3245.9,0.00462207]
[1737652714665,9.85989315,3246.0,3245.9,0.00462207]
[1737652714870,0.61625,3244.9,3244.8,3.2078]
[1737652716760,0.6163,3244.6,3244.5,0.00462207]
[1737652717159,3.2078,3244.7,3243.7,8.74554308]
[1737652717369,0.61642,3244.0,3243.8,2.40471711]
[1737652717970,0.61645,3243.8,3243.7,1.5438]
[1737652718169,0.61647,3243.7,3243.6,3.2078]
[1737652718364,6.37709946,3243.8,3243.1,4.80116205]
[1737652718573,0.61651,3243.5,3243.4,0.00462207]
[1737652719368,3.82431,3243.5,3243.4,2.07e-06]
[1737652719575,12.76555624,3243.5,3243.4,2.07e-06]
[1737652720064,15.17027335,3243.5,3243.4,2.07e-06]
[1737652720469,7.76555624,3243.5,3243.4,2.07e-06]
[1737652720666,3.82431,3243.5,3243.4,2.07e-06]
[1737652721269,0.61651,3243.5,3243.4,2.07e-06]
[1737652721464,4.7878,3244.4,3243.4,2.07e-06]
[1737652721669,0.61647,3243.7,3243.6,2.40471711]
[1737652722169,0.61647,3243.7,3243.6,43.20471711]
[1737652722481,3.2078,3244.4,3243.6,43.20471711]
[1737652722767,0.61647,3243.8,3243.4,3.20780207]
[1737652722970,0.61651,3243.5,3243.4,3.20780207]
[1737652723367,0.61651,3243.5,3243.4,2.07e-06]
[1737652728962,0.6165,3243.6,3243.4,2.07e-06]
[1737652729160,0.61651,3243.5,3243.4,2.07e-06]
[1737652729375,3.2078,3244.0,3243.4,2.92063004]
[1737652729778,0.61651,3243.5,3243.4,2.07e-06]
[1737652730073,0.61649,3243.7,3243.4,3.53715004]
[1737652730368,0.61649,3243.6,3243.4,3.53715004]
[1737652730675,0.61651,3243.5,3243.4,2.92063004]
[1737652730874,3.2078,3244.0,3243.4,2.92063004]
[1737652731372,0.6165,3243.6,3243.4,3.53715004]
[1737652731569,0.6165,3243.6,3243.4,2.92063004]
[1737652731872,0.61651,3243.5,3243.4,2.92063004]
[1737652732076,0.61651,3243.5,3243.4,2.07e-06]
[1737652733065,4.74889,3244.0,3243.4,2.92063004]
[1737652733066,3.2078,3244.0,3243.4,2.92063004]
[1737652733277,0.61644,3243.9,3243.7,3.82426]
[1737652733481,0.61644,3243.9,3243.8,3.115]
[1737652736280,0.61644,3243.9,3243.8,3.73145]
[1737652736467,0.61644,3243.9,3243.8,3.115]
[1737652739075,0.61644,3243.9,3243.8,6.93925]
[1737652739878,0.61643,3243.9,3243.8,6.3228]
[1737652740179,0.61641,3244.1,3244.0,0.6164]
[1737652740372,1.54076,3244.6,3243.9,1.5339]
[1737652740976,0.61628,3244.8,3244.6,0.6163]
[1737652741176,0.00462207,3245.2,3244.5,6.12842797]
[1737652741376,0.62080207,3245.2,3245.1,3.2078]
[1737652742377,0.00462207,3245.2,3245.1,3.2078]
[1737652742582,0.62080207,3245.2,3245.1,3.2078]
[1737652743072,0.00462207,3245.2,3245.1,3.2078]
[1737652743474,0.62081207,3245.2,3245.1,3.2078]
[1737652744683,0.00462207,3245.2,3244.7,4.7417]
[1737652744876,0.61626,3244.8,3244.7,3.2078]
[1737652750877,4.77312207,3245.2,3244.7,3.2078]
[1737652750878,0.00462207,3245.2,3244.7,3.2078]
[1737652751077,0.62076207,3245.2,3245.1,3.2078]
[1737652751585,1.54044,3245.0,3244.4,3.2078]
[1737652751781,2.4124025,3245.2,3244.4,3.2078]
[1737652751782,0.61627,3244.5,3244.4,3.2078]
[1737652753078,1.6034,3245.1,3244.4,3.2078]
[1737652753278,0.61626,3244.6,3244.4,3.2078]
[1737652753881,0.61621,3244.8,3244.6,0.61624]
[1737652754184,0.61623,3244.7,3244.5,3.75186]
[1737652754379,1.6034,3245.1,3244.5,3.75186]
[1737652754578,0.61622,3244.8,3244.5,3.75186]
[1737652754974,0.61625,3244.6,3244.5,3.1356]
[1737652755175,0.61627,3244.5,3244.4,3.2078]
[1737652755583,1.6034,3245.1,3244.4,3.2078]
[1737652755777,0.61623,3244.7,3244.4,3.2078]
[1737652755982,0.00462207,3245.2,3244.6,2.40778043]
[1737652756185,0.00462207,3245.2,3245.0,5.61558043]
[1737652756381,0.61615,3245.1,3245.0,3.2078]
[1737652757490,0.61619,3244.9,3244.8,1.5366]
[1737652757893,0.00462207,3245.2,3244.8,1.5366]
[1737652758095,0.61619,3245.0,3244.8,1.5366]
[1737652758487,0.61619,3244.9,3244.8,1.5366]
[1737652758787,0.61618,3245.0,3244.8,2.15281]
[1737652758996,0.00462207,3245.2,3244.8,1.5366]
[1737652758997,0.61619,3244.9,3244.8,1.5366]
[1737652759195,0.61621,3244.8,3244.7,1.5297]
[1737652759887,0.00462207,3245.2,3244.7,3.93748043]
[1737652760094,0.00462207,3245.2,3245.1,3.82395]
[1737652760595,0.62076207,3245.2,3245.1,3.2078]
[1737652760790,0.00462207,3245.2,3245.1,3.82395]
[1737652761697,0.62076207,3245.2,3245.1,4.8205]
[1737652761989,0.62076207,3245.2,3245.1,3.2078]
[1737652766894,11.47094424,3245.2,3243.9,3.2078]
[1737652767099,0.61635,3244.1,3244.0,0.61635]
[1737652767394,4.74848,3244.6,3243.9,3.2078]
[1737652767696,0.61633,3244.2,3244.1,0.61632]
[1737652767894,3.2078,3244.6,3244.1,2.40778043]
[1737652768096,0.61633,3244.3,3244.2,0.61631]
[1737652768291,3.2078,3245.0,3243.9,3.2078]
[1737652768487,3.2078,3244.6,3243.9,3.2078]
[1737652768692,3.2078,3244.6,3244.0,0.61635]
[1737652768693,0.61635,3244.1,3244.0,0.61635]
[1737652769099,3.2078,3244.6,3243.9,3.2078]
[1737652769291,0.6163,3244.4,3244.2,0.61631]
[1737652769699,0.6163,3244.4,3244.3,1.5685]
[1737652770095,0.61629,3244.5,3244.3,2.1848]
[1737652770294,0.57799933,3245.0,3244.4,4.04318043]
[1737652770496,0.61622,3244.8,3244.6,0.61624]
[1737652770906,0.61624,3244.7,3244.5,0.61625]
[1737652771291,3.2078,3245.1,3244.4,4.04318043]
[1737652771602,0.61622,3244.8,3244.6,0.61625]
[1737652771904,3.2078,3245.1,3244.7,2.40778043]
[1737652772206,0.61621,3244.8,3244.7,2.40778043]
[1737652772799,3.2078,3245.1,3244.7,2.40778043]
[1737652772800,0.61619,3245.0,3244.7,3.02401043]
[1737652773004,3.2078,3245.1,3244.7,2.40778043]
[1737652773398,0.61621,3244.8,3244.7,2.40778043]
[1737652774300,0.61621,3244.8,3244.7,3.02401043]
[1737652774605,0.61623,3244.7,3244.6,0.61624]
[1737652774804,0.61622,3244.8,3244.6,0.61624]
[1737652775109,0.61623,3244.7,3244.4,4.04318043]
[1737652775302,0.61627,3244.5,3244.4,1.6354]
[1737652776502,0.61627,3244.5,3244.4,4.04318043]
[1737652777007,0.61627,3244.5,3244.4,1.6354]
[1737652778696,0.61627,3244.5,3244.4,2.25169]
[1737652778900,4.7482,3245.1,3244.4,1.6354]
[1737652779101,0.61624,3244.7,3244.5,0.61626]
[1737652779301,4.7482,3245.1,3244.4,1.6354]
[1737652779616,0.61627,3244.5,3244.4,1.6354]
[1737652784709,3.2078,3244.7,3244.4,1.6354]
[1737652785010,0.61627,3244.5,3244.4,1.6354]
[1737652785312,0.61626,3244.6,3244.4,2.25169]
[1737652785814,0.61619,3244.9,3244.5,0.61627]
[1737652786015,0.61625,3244.6,3244.4,4.65946043]
[1737652786205,0.61625,3244.6,3244.5,0.61627]
[1737652786405,0.61625,3244.6,3244.4,4.65945043]
[1737652786713,0.61627,3244.5,3244.4,4.04318043]
[1737652786909,0.61626,3244.6,3244.4,4.65947043]
[1737652787706,0.00462207,3245.2,3244.5,1.6586]
[1737652787905,0.6162,3244.9,3244.7,0.61622]
[1737652788106,0.61621,3244.8,3244.7,0.61622]
[1737652788307,0.6162,3244.9,3244.7,0.61622]
[1737652789114,0.61621,3244.8,3244.7,0.61622]
[1737652789710,0.61621,3244.9,3244.7,0.61622]
[1737652789907,0.61622,3244.8,3244.6,0.61624]
[1737652790107,0.61622,3244.8,3244.5,1.6586]
[1737652790308,0.61622,3244.8,3244.7,0.61623]
[1737652790611,0.61627,3244.5,3244.4,1.6354]
[1737652791514,0.61629,3244.4,3244.3,4.7763]
[1737652792015,0.61628,3244.5,3244.3,5.3926]
[1737652792605,0.61629,3244.4,3244.3,4.7763]
[1737652793308,0.61633,3244.2,3244.1,3.94398043]
[1737652793509,0.61633,3244.2,3244.1,5.49388043]
[1737652793812,0.61633,3244.2,3244.1,3.0861]
[1737652794603,0.61633,3244.2,3244.1,5.49388043]
[1737652794807,3.2078,3244.6,3244.1,5.49388043]
[1737652795011,0.61629,3244.4,3244.2,0.61633]
[1737652795514,0.61628,3244.5,3244.2,0.61633]
[1737652795903,0.6163,3244.4,3244.2,0.61633]
[1737652796112,0.6163,3244.4,3244.2,0.61632]
[1737652796512,0.28898868,3244.8,3244.1,5.49388043]
[1737652796705,0.61628,3244.5,3244.3,0.61631]
[1737652797712,0.28898868,3244.9,3244.2,3.2078]
[1737652797913,0.61627,3244.5,3244.3,0.6163]
[1737652798721,0.61627,3244.5,3244.2,3.82411]
[1737652799015,0.61627,3244.5,3244.3,0.6163]
[1737652799216,3.2078,3245.0,3244.4,2.40778043]
[1737652799419,3.82398,3245.0,3244.8,0.61621]
[1737652799620,0.61621,3244.8,3244.7,2.40778043]
[1737652799813,0.61621,3244.8,3244.6,0.61624]
[1737652800314,0.00462207,3245.2,3244.7,7.13878043]
[1737652800517,0.00462207,3245.2,3245.1,3.82395]
[1737652800714,0.00462207,3245.2,3245.0,2.40778043]
[1737652800715,0.00462207,3245.2,3244.8,1.6436]
[1737652801017,0.61621,3244.8,3244.7,1.5232]
[1737652801516,0.61629,3244.4,3244.3,3.2078]